bitfinex-derivatives/quotes_SOLF0:USTF0_20240910
["timestamp","ask_amount","ask_price","bid_price","bid_amount"]
[1725955695037,14.18,135.56,135.47,3.73809223]
[1725955695241,14.18,135.56,135.46,14.18]
[1725955696435,3.6898,135.51,135.46,17.86236591]
[1725955696944,3.66575872,135.58,135.46,17.86236591]
[1725955697243,14.18,135.57,135.46,17.86236591]
[1725955697444,17.83733904,135.57,135.46,17.86236591]
[1725955698443,14.18,135.55,135.44,14.18]
[1725955698641,2.5709,135.54,135.44,17.83807737]
[1725955698845,2.5709,135.54,135.44,14.18]
[1725955699140,1.3558,135.53,135.43,3.78396337]
[1725955699345,1.3558,135.53,135.44,14.18]
[1725955699643,3.6911,135.46,135.44,14.18]
[1725955701146,3.74288588,135.5,135.44,14.18]
[1725955701344,14.18,135.52,135.42,14.18]
[1725955701537,3.6912,135.46,135.42,14.18]
[1725955701941,14.18,135.52,135.42,14.18]
[1725955702240,1.3558,135.53,135.44,14.18]
[1725955702840,3.6911,135.46,135.44,14.18]
[1725955703041,1.3558,135.53,135.44,14.18]
[1725955703042,3.67494083,135.5,135.44,14.18]
[1725955703243,23.5458,135.53,135.44,14.18]
[1725955703438,22.19,135.51,135.42,14.18]
[1725955703643,22.19,135.49,135.4,15.5638]
[1725955703840,22.19,135.47,135.36,2.7171]
[1725955704039,22.19,135.43,135.35,14.18]
[1725955704246,25.85496787,135.43,135.35,14.18]
[1725955704952,3.693,135.39,135.35,17.8738]
[1725955705148,3.693,135.39,135.37,14.18]
[1725955705351,3.72996528,135.44,135.37,14.18]
[1725955705554,3.6928,135.39,135.37,14.18]
[1725955705851,3.6686609,135.43,135.37,14.18]
[1725955706041,15.5365,135.46,135.33,3.9913]
[1725955706042,14.18,135.44,135.35,14.18]
[1725955706245,14.18,135.44,135.33,7.71757225]
[1725955706246,37.6477,135.42,135.33,7.71757225]
[1725955706551,37.6477,135.42,135.33,6.41677225]
[1725955706755,1.3209,135.41,135.33,6.41677225]
[1725955707146,1.2839,135.4,135.32,14.18]
[1725955707653,37.6539,135.4,135.3,14.18]
[1725955707952,37.6539,135.4,135.28,2.6567]
[1725955707953,1.2839,135.4,135.28,2.6567]
[1725955708147,3.695,135.31,135.28,2.6567]
[1725955708351,14.18,135.37,135.28,2.6567]
[1725955708352,1.2839,135.4,135.29,7.43126578]
[1725955708565,14.18,135.39,135.29,7.43126578]
[1725955708754,14.18,135.39,135.3,3.695]
[1725955709151,3.694,135.35,135.29,17.91586578]
[1725955709357,1.2839,135.4,135.3,3.6952]
[1725955709657,14.18,135.39,135.29,17.91586578]
[1725955710553,3.6944,135.34,135.3,3.6951]
[1725955710857,14.18,135.39,135.29,17.91586578]
[1725955711152,14.18,135.39,135.31,3.695]
[1725955711153,3.6942,135.35,135.31,3.695]
[1725955711456,3.6942,135.35,135.29,17.91586578]
[1725955711457,14.18,135.39,135.29,17.91586578]
[1725955711755,14.18,135.39,135.3,3.695]
[1725955712053,14.18,135.39,135.29,17.91586578]
[1725955712252,3.6946,135.33,135.29,21.61136578]
[1725955712843,3.6946,135.33,135.3,3.6952]
[1725955713153,3.6942,135.34,135.3,3.6952]
[1725955714454,3.6945,135.33,135.3,3.6952]
[1725955714657,3.6945,135.33,135.29,21.61126578]
[1725955714865,14.18,135.39,135.29,21.61126578]
[1725955715060,3.6945,135.33,135.29,17.91586578]
[1725955715452,14.18,135.39,135.3,3.6951]
[1725955715653,3.6943,135.34,135.3,3.6951]
[1725955716259,3.6943,135.34,135.31,3.6949]
[1725955717362,3.6943,135.34,135.3,3.6952]
[1725955717568,3.6943,135.34,135.29,17.91586578]
[1725955718255,36.37,135.39,135.29,17.91586578]
[1725955718451,36.37,135.39,135.3,3.6951]
[1725955718864,3.6943,135.34,135.3,3.6951]
[1725955719266,23.4739,135.4,135.31,3.6949]
[1725955719563,3.6941,135.35,135.31,3.6949]
[1725955719762,23.4739,135.4,135.31,14.18]
[1725955720263,23.4739,135.4,135.3,14.18]
[1725955720767,3.6945,135.33,135.3,17.8751]
[1725955720963,23.4739,135.4,135.3,17.86744078]
[1725955721156,23.4739,135.4,135.35,17.8737]
[1725955721157,3.6929,135.39,135.35,17.8737]
[1725955721471,1.3209,135.41,135.35,14.18]
[1725955721672,1.2777,135.42,135.35,14.18]
[1725955722357,3.693,135.39,135.35,17.8737]
[1725955722563,1.2777,135.42,135.35,17.8737]
[1725955723262,3.6933,135.38,135.35,17.8737]
[1725955723656,1.2777,135.42,135.35,17.8737]
[1725955723965,3.6932,135.38,135.35,17.8737]
[1725955724271,1.2777,135.42,135.34,14.18]
[1725955724466,1.4069,135.41,135.34,14.18]
[1725955725268,24.9481,135.41,135.34,14.18]
[1725955725462,3.6941,135.35,135.31,14.18]
[1725955725769,24.9481,135.41,135.32,3.6947]
[1725955725965,24.9481,135.41,135.31,14.18]
[1725955726270,24.9481,135.41,135.32,3.6946]
[1725955727169,3.694,135.35,135.32,3.6946]
[1725955727560,24.9481,135.41,135.33,3.6944]
[1725955727759,3.6938,135.36,135.33,3.6944]
[1725955727963,3.6938,135.36,135.31,14.18]
[1725955728165,24.9481,135.41,135.32,3.6946]
[1725955728668,24.9481,135.41,135.31,14.18]
[1725955729071,24.9481,135.41,135.33,3.6944]
[1725955729072,3.6939,135.36,135.33,3.6944]
[1725955729370,24.9481,135.41,135.33,14.18]
[1725955730369,3.6937,135.36,135.33,17.8743]
[1725955731656,24.9481,135.41,135.33,14.18]
[1725955732262,3.6933,135.38,135.35,3.6939]
[1725955732870,3.6935,135.37,135.34,3.6941]
[1725955735264,3.6932,135.38,135.35,3.6939]
[1725955736371,2.7581,135.41,135.33,14.18]
[1725955736372,3.6929,135.39,135.36,3.6936]
[1725955736569,3.6929,135.39,135.36,17.8736]
[1725955737069,1.2777,135.42,135.34,17.8741]
[1725955738168,3.6935,135.37,135.34,17.8741]
[1725955740265,3.6937,135.36,135.34,14.18]
[1725955740968,22.19,135.39,135.3,17.90911707]
[1725955741170,22.19,135.39,135.3,14.18]
[1725955741667,22.19,135.39,135.31,7.42613414]
[1725955741861,22.19,135.39,135.31,3.73133414]
[1725955742265,22.19,135.39,135.31,7.42613414]
[1725955742466,22.19,135.39,135.31,3.6948]
[1725955743366,15.5131,135.4,135.32,14.18]
[1725955743367,3.6938,135.36,135.32,14.18]
[1725955743675,3.6938,135.36,135.32,17.94191218]
[1725955744068,1.3331,135.4,135.32,17.94191218]
[1725955744874,3.6939,135.36,135.33,3.6943]
[1725955745073,1.3331,135.4,135.32,17.94191218]
[1725955745465,3.6934,135.37,135.34,3.6939]
[1725955745666,1.3331,135.4,135.32,17.94191218]
[1725955746777,1.3331,135.4,135.33,3.6943]
[1725955746778,3.6939,135.36,135.33,3.6943]
[1725955747168,3.6935,135.37,135.34,3.6941]
[1725955747373,3.6935,135.37,135.34,14.18]
[1725955747872,3.6935,135.37,135.34,17.874]
[1725955748072,3.6937,135.36,135.32,17.94191218]
[1725955748277,3.6937,135.36,135.32,14.18]
[1725955748478,3.6941,135.35,135.32,14.18]
[1725955748677,3.6941,135.35,135.32,17.8813083]
[1725955748977,25.95857121,135.37,135.28,2.7089]
[1725955749177,22.19,135.37,135.29,3.6950255]
[1725955749480,36.37,135.36,135.28,1.3164]
[1725955749668,1.3536,135.35,135.28,1.3164]
[1725955749973,3.6953,135.3,135.28,1.3164]
[1725955750476,3.6953,135.3,135.27,14.18]
[1725955750777,3.6953,135.3,135.27,17.8759]
[1725955751679,3.695,135.31,135.28,3.6958]
[1725955752067,3.695,135.31,135.27,17.8373287]
[1725955752068,3.6947,135.33,135.29,17.8754]
[1725955752480,1.3536,135.35,135.29,17.8754]
[1725955752776,1.3536,135.35,135.29,21.63538225]
[1725955752982,1.3536,135.35,135.29,14.18]
[1725955753282,3.6949,135.32,135.29,14.18]
[1725955753482,3.6949,135.32,135.29,17.84348713]
[1725955754483,3.6949,135.32,135.29,14.18]
[1725955755884,3.6949,135.32,135.29,17.8755]
[1725955756983,3.695,135.31,135.29,14.18]
[1725955757178,1.3536,135.35,135.29,14.18]
[1725955757990,3.6945,135.33,135.3,3.6951]
[1725955759285,3.6942,135.34,135.31,3.6948]
[1725955759489,1.2877,135.37,135.29,14.18]
[1725955759793,1.2877,135.37,135.29,15.5088]
[1725955759994,1.2877,135.37,135.29,1.3288]
[1725955760190,3.65038163,135.36,135.29,1.3288]
[1725955760394,3.6947,135.33,135.29,1.3288]
[1725955760592,1.2877,135.37,135.29,15.5088]
[1725955760988,3.6942,135.34,135.31,3.6948]
[1725955761586,3.6945,135.33,135.3,3.6951]
[1725955763495,3.6945,135.33,135.29,15.5088]
[1725955763496,27.22233511,135.37,135.29,3.6954]
[1725955763793,41.40233511,135.37,135.28,4.96034543]
[1725955763993,3.6951,135.31,135.28,8.65604543]
[1725955764601,3.6953,135.3,135.28,4.96034543]
[1725955764892,3.6953,135.3,135.27,3.696]
[1725955765302,3.6953,135.3,135.27,7.39295401]
[1725955765491,3.6953,135.3,135.27,3.696]
[1725955765797,1.3207,135.34,135.24,1.3167]
[1725955765987,1.411,135.33,135.24,1.3167]
[1725955766192,1.411,135.33,135.24,5.0135]
[1725955766193,3.6961,135.27,135.24,5.0135]
[1725955766595,1.411,135.33,135.24,1.3167]
[1725955766796,3.6958,135.28,135.25,3.6965]
[1725955767392,22.19,135.32,135.23,14.18]
[1725955767693,22.19,135.32,135.21,2.7166]
[1725955767694,22.19,135.3,135.21,16.8966]
[1725955767897,3.67825639,135.29,135.22,3.6972]
[1725955768094,14.18,135.31,135.21,16.8966]
[1725955768398,3.6971,135.24,135.21,1.4035]
[1725955768697,14.18,135.29,135.21,1.4035]
[1725955769000,3.697,135.24,135.21,1.4035]
[1725955769195,1.3001,135.28,135.19,17.8782]
[1725955769391,1.3001,135.28,135.19,21.59417451]
[1725955769589,3.6974,135.23,135.19,21.59417451]
[1725955769999,3.6974,135.23,135.2,3.698]
[1725955770398,1.2771,135.27,135.19,17.89597451]
[1725955770599,1.2771,135.27,135.21,3.6976]
[1725955771004,3.6968,135.25,135.21,3.6976]
[1725955771503,1.3664,135.32,135.24,14.18]
[1725955772002,1.3664,135.32,135.26,14.18]
[1725955772206,1.3664,135.32,135.26,17.87978545]
[1725955772902,2.5957,135.35,135.26,17.87978545]
[1725955773795,3.6952,135.31,135.27,3.6959]
[1725955774905,3.6956,135.29,135.26,14.18]
[1725955775102,22.19,135.34,135.26,14.18]
[1725955775704,22.19,135.34,135.26,17.89690382]
[1725955776107,22.19,135.34,135.26,14.18]
[1725955776302,3.6954,135.3,135.26,17.8762]
[1725955777113,3.6954,135.3,135.26,21.66557106]
[1725955778104,3.6954,135.3,135.27,3.696]
[1725955778711,3.6951,135.31,135.27,3.696]
[1725955779912,38.9657,135.35,135.27,3.696]
[1725955780805,3.6954,135.3,135.27,3.696]
[1725955781611,3.6954,135.3,135.26,21.66557106]
[1725955781904,3.6957,135.29,135.24,14.18]
[1725955782910,3.6957,135.29,135.26,3.6963]
[1725955783507,3.6957,135.29,135.26,7.45729977]
[1725955785299,3.6959,135.28,135.26,3.6963]
[1725955787712,3.6959,135.28,135.26,7.35293363]
[1725955787912,3.6957,135.29,135.26,7.35293363]
[1725955788703,3.696,135.28,135.26,3.65663363]
[1725955788915,3.696,135.28,135.26,3.66513829]
[1725955789106,3.696,135.28,135.24,14.18]
[1725955789306,3.696,135.28,135.26,3.6963]
[1725955789505,38.9657,135.35,135.26,14.18]
[1725955789712,38.9657,135.35,135.26,17.84402898]
[1725955790509,3.6954,135.3,135.27,3.696]
[1725955791214,3.6954,135.3,135.28,3.6957]
[1725955791706,3.6951,135.31,135.28,3.6957]
[1725955791914,2.5957,135.35,135.28,14.18]
[1725955792415,6.36474304,135.35,135.28,17.92685697]
[1725955792916,3.6947,135.33,135.28,17.92685697]
[1725955793115,6.36474304,135.35,135.28,17.92685697]
[1725955793316,2.5957,135.35,135.28,17.92685697]
[1725955793505,1.2819,135.36,135.3,14.18]
[1725955793710,1.3619,135.38,135.3,14.18]
[1725955793911,4.98824925,135.38,135.31,3.62265266]
[1725955794109,1.3619,135.38,135.32,3.6946]
[1725955794309,1.3619,135.38,135.32,14.18]
[1725955795017,3.6936,135.37,135.33,7.42674122]
[1725955795620,1.3619,135.38,135.27,4.0675]
[1725955795621,1.3619,135.38,135.29,14.18]
[1725955795805,5.0534019,135.39,135.29,14.18]
[1725955796210,5.0534019,135.39,135.32,3.6947]
[1725955796512,5.0534019,135.39,135.29,17.817439]
[1725955796717,3.6941,135.35,135.31,3.6948]
[1725955797117,5.0534019,135.39,135.31,3.6948]
[1725955797512,5.0534019,135.39,135.3,3.695]
[1725955798111,3.6946,135.33,135.3,3.695]
[1725955798422,27.2434019,135.39,135.29,17.817439]
[1725955798423,36.37,135.38,135.29,7.332839]
[1725955798720,3.695,135.32,135.29,7.332939]
[1725955798915,3.695,135.32,135.29,3.6955]
[1725955799117,3.695,135.32,135.29,7.2985102]
[1725955799317,5.0534019,135.39,135.31,3.6949]
[1725955799525,5.0534019,135.39,135.29,17.7830102]
[1725955799725,5.0534019,135.39,135.33,3.6944]
[1725955799914,1.3217,135.39,135.33,3.6944]
[1725955800227,1.3217,135.39,135.33,7.36086954]
[1725955800927,3.6939,135.35,135.31,14.18]
[1725955801120,3.6939,135.35,135.32,3.72671496]
[1725955801426,3.6939,135.35,135.32,7.42141496]
[1725955801629,3.6939,135.35,135.32,3.72671496]
[1725955802019,3.6939,135.35,135.32,7.42141496]
[1725955802219,3.6939,135.35,135.32,3.72671496]
[1725955802421,3.6942,135.34,135.32,3.72671496]
[1725955802714,3.6942,135.34,135.31,14.18]
[1725955802925,3.6942,135.34,135.31,17.8749]
[1725955803119,3.694,135.35,135.31,17.82244529]
[1725955803715,3.694,135.35,135.32,3.6947]
[1725955803921,3.6942,135.34,135.31,17.82244529]
[1725955804622,3.6942,135.34,135.27,4.0675]
[1725955804623,14.18,135.36,135.27,2.7161]
[1725955804826,24.8191,135.35,135.27,1.3609]
[1725955805024,3.6955,135.3,135.27,5.0569]
[1725955805328,24.8191,135.35,135.27,5.0569]
[1725955805329,2.6291,135.35,135.29,14.18]
[1725955806123,2.6291,135.35,135.29,17.86763474]
[1725955806731,3.6944,135.33,135.3,3.6951]
[1725955810932,3.6947,135.32,135.3,3.6951]
[1725955811233,2.6291,135.35,135.3,3.6951]
[1725955811630,3.6946,135.33,135.3,3.6951]
[1725955812322,3.6949,135.32,135.29,17.86763474]
[1725955812523,2.6291,135.35,135.27,15.5409]
[1725955812938,3.6949,135.32,135.29,3.6955]
[1725955814031,3.6951,135.31,135.28,7.3396926]
[1725955816237,3.6951,135.31,135.29,3.6955]
[1725955818931,3.6951,135.31,135.28,7.3396926]
[1725955821638,3.6951,135.31,135.29,3.6955]
[1725955822142,3.6951,135.31,135.3,9.09]
[1725955823039,2.6291,135.35,135.3,9.09]
[1725955823240,2.6291,135.35,135.32,9.09]
[1725955823642,1.3217,135.39,135.33,9.09]
[1725955823643,32.6017,135.39,135.33,9.09]
[1725955823940,35.258,135.39,135.33,9.09]
[1725955824239,3.6942,135.34,135.33,9.09]
[1725955824737,3.75240277,135.38,135.33,9.09]
[1725955824940,3.6937,135.36,135.33,12.7844]
[1725955825338,3.978,135.39,135.34,9.09]
[1725955825339,3.6935,135.37,135.34,9.09]
[1725955825943,3.6936,135.36,135.34,9.09]
[1725955826940,3.6939,135.35,135.33,9.09]
[1725955830447,3.6937,135.36,135.33,12.7844]
[1725955831440,3.6939,135.35,135.33,9.09]
[1725955832246,16.810422,135.39,135.33,9.09]
[1725955832247,39.000422,135.39,135.33,9.09]
[1725955832641,3.694,135.35,135.33,9.09]
[1725955832847,3.978,135.39,135.34,12.784]
[1725955833242,3.6935,135.37,135.34,12.784]
[1725955834549,3.6937,135.36,135.34,12.784]
[1725955835948,3.6934,135.37,135.34,12.784]
[1725955836151,13.068,135.39,135.28,3.6439926]
[1725955836349,13.068,135.39,135.33,9.09]
[1725955836552,13.068,135.39,135.33,12.84156508]
[1725955836742,3.6941,135.35,135.33,12.84156508]
[1725955837442,3.74094604,135.4,135.34,9.09]
[1725955837443,12.83094604,135.4,135.34,9.09]
[1725955838048,9.09,135.39,135.34,9.09]
[1725955838260,3.6938,135.36,135.34,9.09]
[1725955838549,9.09,135.39,135.34,9.09]
[1725955839244,9.09,135.39,135.32,12.7846]
[1725955839449,3.694,135.35,135.32,12.7846]
[1725955839750,9.09,135.36,135.27,1.3609]
[1725955840048,3.6944,135.34,135.31,9.09]
[1725955840248,22.19,135.4,135.32,9.09]
[1725955840443,9.09,135.38,135.32,9.09]
[1725955840642,3.6941,135.35,135.32,9.09]
[1725955840842,3.6941,135.35,135.32,12.7845]
[1725955841050,3.75239634,135.37,135.32,9.09]
[1725955841646,3.6941,135.35,135.32,12.7846]
[1725955842244,3.6937,135.36,135.33,3.6944]
[1725955842445,3.6937,135.36,135.34,9.09]
[1725955842645,9.09,135.38,135.34,9.09]
[1725955842846,3.6935,135.37,135.34,12.7841]
[1725955843352,3.6036461,135.39,135.34,12.7841]
[1725955843547,3.6036461,135.39,135.27,5.14618292]
[1725955843548,31.28,135.39,135.32,9.09]
[1725955843748,35.01595102,135.39,135.32,9.09]
[1725955843952,3.694,135.35,135.32,12.7846]
[1725955844848,3.694,135.35,135.33,3.6944]
[1725955845049,3.6938,135.36,135.33,3.6944]
[1725955845245,3.6938,135.36,135.33,12.7844]
[1725955846548,35.01595102,135.39,135.33,12.7844]
[1725955846549,3.6939,135.35,135.33,12.7844]
[1725955847157,3.6939,135.35,135.33,9.09]
[1725955847351,3.6942,135.34,135.32,9.09]
[1725955847655,35.01595102,135.39,135.32,9.09]
[1725955848155,9.09,135.37,135.31,9.09]
[1725955848347,9.09,135.36,135.3,9.09]
[1725955848542,3.6949,135.32,135.3,9.09]
[1725955848849,13.2249,135.36,135.3,12.7852]
[1725955849352,4.1349,135.36,135.31,12.7849]
[1725955849549,4.1349,135.36,135.33,9.09]
[1725955849944,3.73595102,135.39,135.33,9.09]
[1725955850146,9.09,135.4,135.34,9.09]
[1725955850342,3.6937,135.36,135.34,9.09]
[1725955851358,3.70232111,135.39,135.34,9.09]
[1725955851359,3.6939,135.35,135.34,9.09]
[1725955851761,12.79232111,135.39,135.33,9.09]
[1725955851956,3.694,135.35,135.33,9.09]
[1725955853257,3.694,135.35,135.33,12.7844]
[1725955853454,3.70232111,135.39,135.33,9.09]
[1725955853653,31.28,135.4,135.33,9.09]
[1725955853854,3.6939,135.36,135.33,12.7843]
[1725955854665,9.09,135.38,135.32,9.09]
[1725955854853,3.67829686,135.4,135.27,5.14618292]
[1725955854854,9.09,135.36,135.27,5.14618292]
[1725955855053,9.09,135.36,135.29,9.09]
[1725955855355,3.73346145,135.35,135.29,9.09]
[1725955855862,32.5951,135.36,135.29,9.09]
[1725955856662,3.77891935,135.35,135.29,9.09]
[1725955856855,3.6949,135.32,135.29,12.7855]
[1725955857756,3.695,135.31,135.29,12.7855]
[1725955859954,3.6953,135.3,135.29,9.09]
[1725955865960,3.6951,135.31,135.29,9.09]
[1725955870166,35.05891935,135.35,135.29,9.09]
[1725955870975,3.6951,135.31,135.29,9.09]
[1725955871677,3.6953,135.3,135.29,9.09]
[1725955871878,3.6953,135.3,135.2,7.3955]
[1725955871879,9.09,135.32,135.2,7.3955]
[1725955872069,3.77891935,135.35,135.21,4.0068]
[1725955872070,3.6968,135.25,135.21,4.0068]
[1725955872270,3.6968,135.25,135.23,9.09]
[1725955872477,3.6968,135.25,135.23,12.80312218]
[1725955872866,9.09,135.28,135.23,9.09]
[1725955872867,3.6969,135.24,135.23,9.09]
[1725955873067,9.09,135.28,135.23,9.09]
[1725955873473,3.6969,135.24,135.23,9.09]
[1725955873683,3.78409475,135.26,135.16,1.3582]
[1725955873875,9.09,135.26,135.21,9.09]
[1725955874178,3.71201323,135.27,135.22,12.69666332]
[1725955874378,9.09,135.28,135.22,12.78941555]
[1725955874583,3.6968,135.25,135.22,12.78941555]
[1725955874880,3.6968,135.25,135.22,9.09]
[1725955875776,3.6968,135.25,135.22,12.7779485]
[1725955877875,3.6969,135.24,135.22,12.7779485]
[1725955878176,3.6969,135.24,135.22,9.09]
[1725955878879,3.6969,135.24,135.2,12.788]
[1725955879069,3.6972,135.23,135.2,9.09]
[1725955879481,12.84342161,135.27,135.2,9.09]
[1725955879680,9.09,135.25,135.19,12.7883]
[1725955879881,9.09,135.25,135.18,9.09]
[1725955880082,3.6979,135.21,135.18,9.09]
[1725955880580,3.6976,135.22,135.18,12.7884]
[1725955881577,3.6977,135.21,135.18,12.7884]
[1725955881783,2.7506,135.26,135.2,9.09]
[1725955881982,2.7506,135.26,135.22,9.09]
[1725955882183,3.6971,135.24,135.22,9.09]
[1725955882680,2.7506,135.26,135.22,9.09]
[1725955882881,5.0651,135.26,135.23,9.09]
[1725955883788,3.6967,135.25,135.23,9.09]
[1725955885584,1.3778,135.3,135.24,9.09]
[1725955886088,1.3778,135.3,135.24,12.7868]
[1725955886288,1.3778,135.3,135.24,9.09]
[1725955886783,3.6966,135.26,135.23,9.09]
[1725955887192,3.6966,135.26,135.23,12.7872]
[1725955894186,3.6967,135.25,135.23,3.6972]
[1725955895195,3.6965,135.26,135.23,3.6972]
[1725955895588,3.77837794,135.28,135.23,3.6972]
[1725955897400,3.77891935,135.35,135.27,9.09]
[1725955897699,9.09,135.35,135.29,9.09]
[1725955897898,3.695,135.32,135.29,9.09]
[1725955898500,3.6952,135.31,135.29,9.09]
[1725955901101,3.6948,135.32,135.29,9.09]
[1725955901496,3.695,135.31,135.29,9.09]
[1725955901801,12.79599031,135.35,135.29,9.09]
[1725955902002,3.6946,135.33,135.3,9.09]
[1725955902196,3.6946,135.33,135.3,12.87918034]
[1725955902600,3.6942,135.34,135.32,9.09]
[1725955903205,3.694,135.35,135.32,9.09]
[1725955903506,3.61691126,135.36,135.3,3.69713098]
[1725955903507,2.5872,135.37,135.33,12.7844]
[1725955903714,5.001,135.37,135.33,9.09]
[1725955903902,3.65935163,135.39,135.35,9.09]
[1725955904203,3.6934,135.37,135.35,9.09]
[1725955904403,3.68226646,135.39,135.35,9.09]
[1725955904598,10.4508,135.41,135.35,9.09]
[1725955904999,3.6934,135.37,135.35,9.09]
[1725955906503,3.6936,135.36,135.33,9.09]
[1725955906904,3.6936,135.36,135.32,9.09]
[1725955907202,3.6936,135.36,135.32,12.80756966]
[1725955907799,3.6936,135.36,135.32,16.50206966]
[1725955908005,3.6936,135.36,135.33,9.09]
[1725955909305,9.09,135.39,135.33,9.09]
[1725955909700,9.09,135.39,135.33,12.7844]
[1725955910097,3.6933,135.38,135.33,12.7844]
[1725955910301,5.07817791,135.41,135.34,12.784]
[1725955910612,14.16817791,135.41,135.34,12.784]
[1725955910911,3.6934,135.37,135.34,12.784]
[1725955914410,3.6937,135.36,135.33,12.7844]
[1725955916108,5.07817791,135.41,135.34,9.09]
[1725955916109,14.16817791,135.41,135.34,9.09]
[1725955916710,3.6935,135.37,135.34,12.784]
[1725955917311,3.6932,135.38,135.36,9.09]
[1725955917710,5.07817791,135.41,135.36,9.09]
[1725955917913,3.6933,135.37,135.36,9.09]
[1725955918120,5.07817791,135.41,135.36,9.09]
[1725955918512,3.6933,135.37,135.36,9.09]
[1725955921915,5.07817791,135.41,135.36,9.09]
[1725955921916,3.71737791,135.41,135.36,9.09]
[1725955922120,3.71737791,135.41,135.37,9.09]
[1725955922317,2.7497,135.42,135.37,9.09]
[1725955922514,9.09,135.41,135.36,9.09]
[1725955922714,3.73364477,135.4,135.36,9.09]
[1725955922922,3.6929,135.39,135.36,12.7836]
[1725955923522,3.6931,135.38,135.36,9.09]
[1725955924215,12.76304925,135.41,135.35,3.6938]
[1725955924418,9.09,135.4,135.34,16.45778822]
[1725955924824,3.6935,135.37,135.34,16.45778822]
[1725955925615,3.6936,135.36,135.34,9.09]
[1725955925812,3.6936,135.36,135.33,12.7843]
[1725955926011,3.6936,135.36,135.33,12.79445547]
[1725955926418,3.6935,135.37,135.34,3.6942]
[1725955928235,3.6937,135.36,135.34,3.6942]
[1725955928529,9.09,135.39,135.33,16.48875547]
[1725955928923,3.6938,135.36,135.33,16.48875547]
[1725955929425,3.74611973,135.38,135.33,12.7843]
[1725955929927,9.09,135.39,135.33,12.7843]
[1725955930331,3.6938,135.36,135.33,12.7843]
[1725955932019,3.6939,135.35,135.33,12.7843]
[1725955933123,3.6938,135.36,135.33,12.7843]
[1725955936723,3.6938,135.36,135.34,3.6942]
[1725955937326,3.6938,135.36,135.33,9.09]
[1725955937628,3.6938,135.36,135.33,12.7844]
[1725955938024,3.6938,135.36,135.34,3.6941]
[1725955938428,3.6938,135.36,135.33,9.09]
[1725955938624,3.6938,135.36,135.35,9.09]
[1725955939725,3.6931,135.38,135.35,9.09]
[1725955939930,3.78085735,135.39,135.35,9.09]
[1725955940230,9.09,135.4,135.35,9.09]
[1725955940731,3.6936,135.37,135.35,9.09]
[1725955941029,12.72082682,135.4,135.35,9.09]
[1725955942118,3.6936,135.36,135.35,9.09]
[1725955945623,12.72082682,135.4,135.35,12.7839]
[1725955945624,3.6932,135.38,135.35,12.7839]
[1725955945931,3.6932,135.38,135.36,9.09]
[1725955946822,3.6933,135.37,135.36,9.09]
[1725955949234,3.6933,135.37,135.35,9.09]
[1725955950933,3.6932,135.38,135.35,12.7838]
[1725955951826,3.6932,135.38,135.36,3.6936]
[1725955952136,3.6933,135.37,135.33,1.3863]
[1725955952328,11.8397,135.42,135.35,12.7837]
[1725955952528,15.52114999,135.42,135.35,12.7837]